[Event "360 One Wealth GP-4 2024"]
[Site "Mumbai"]
[Date "2024.03.13"]
[Round "3.14"]
[White "Sathiesh Kumaar L"]
[Black "Gangan Vihang Vishwanath"]
[Result "0-1"]
[ECO "C89"]
[WhiteElo "1497"]
[BlackElo "1454"]
[Annotator "NA RC"]
[PlyCount "115"]
[EventDate "2024.03.10"]
[EventCountry "IND"]
[SourceTitle "playchess.com"]
[Source "ChessBase"]
[SourceQuality "1"]
[TimeControl "5400+30"]

1. e4 {[%emt 0:02:30]} e5 {[%emt 0:00:03]} 2. Nf3 {[%emt 0:02:34]} Nc6 {[%emt 0:00:07]} 3. Bb5 {[%emt 0:00:06]} a6 {[%emt 0:00:05]} 4. Ba4 {[%emt 0:00:05]} Nf6 {[%emt 0:00:03]} 5. O-O {[%emt 0:00:29]} b5 {[%emt 0:00:06]} 6. Bb3 {[%emt 0:00:07]} Be7 {[%emt 0:00:07]} 7. Re1 {[%emt 0:00:35]} O-O {[%emt 0:00:06]} 8. c3 d5 {[%emt 0:00:20]} 9. exd5 Nxd5 {[%emt 0:02:05]} 10. Nxe5 Nxe5 {[%emt 0:03:08]} 11. Rxe5 c6 {[%emt 0:00:15]} 12. Bxd5 cxd5 {[%emt 0:05:34]} 13. d4 {[%emt 0:01:47]} Bd6 {[%emt 0:00:07]} 14. Re1 {[%emt 0:01:50]} Qh4 {[%emt 0:00:06]} 15. g3 {[%emt 0:01:05]} Qh3 {[%emt 0:04:06]} 16. Qf3 {[%emt 0:17:06]} Bg4 {[%emt 0:02:39]} 17. Qxd5 {[%emt 0:05:19]} Rad8 {[%emt 0:22:06]} 18. Qg2 {[%emt 0:03:13]} Qh5 {[%emt 0:16:52]} 19. Be3 {[%emt 0:15:12]} Bf3 {[%emt 0:00:07]} 20. Qf1 {[%emt 0:00:48]} f5 {[%emt 0:07:15]} 21. Nd2 {[%emt 0:03:16]} f4 {[%emt 0:00:39]} 22. Bxf4 {[%emt 0:01:21]} Rxf4 {[%emt 0:00:44]} 23. Nxf3 {[%emt 0:00:18]} Rxf3 {[%emt 0:00:58]} 24. Qe2 {[%emt 0:04:51]} Qf7 {[%emt 0:03:27]} 25. Qc2 {[%emt 0:10:54]} Re8 {[%emt 0:05:28]} 26. Re2 {[%emt 0:00:51]} Rxe2 {[%emt 0:00:33]} 27. Qxe2 {[%emt 0:00:58]} Rf6 {[%emt 0:00:44]} 28. a3 Qe7 {[%emt 0:00:49]} 29. Qxe7 Bxe7 {[%emt 0:01:52]} 30. Re1 Kf7 {[%emt 0:00:13]} 31. h4 Re6 {[%emt 0:00:53]} 32. Kf1 Rxe1+ {[%emt 0:04:08]} 33. Kxe1 g5 {[%emt 0:00:09]} 34. hxg5 Bxg5 {[%emt 0:01:59]} 35. f4 {[%emt 0:00:09]} Be7 {[%emt 0:00:23]} 36. Ke2 {[%emt 0:01:41]} h5 {[%emt 0:01:07]} 37. Ke3 {[%emt 0:01:04]} Ke6 {[%emt 0:03:42]} 38. Ke4 {[%emt 0:00:19]} Bd6 {[%emt 0:00:27]} 39. d5+ {[%emt 0:01:03]} Kf6 {[%emt 0:00:21]} 40. b4 {[%emt 0:01:10]} Kg6 {[%emt 0:00:15]} 41. Ke3 {[%emt 0:01:00]} Kf5 {[%emt 0:00:53]} 42. Kf3 {[%emt 0:00:17]} Bc7 {[%emt 0:03:45]} 43. Ke3 {[%emt 0:04:33]} Bb6+ {[%emt 0:00:14]} 44. Kf3 {[%emt 0:00:54]} a5 {[%emt 0:00:58]} 45. Kg2 {[%emt 0:01:55]} axb4 {[%emt 0:00:43]} 46. axb4 {[%emt 0:00:08]} Kg4 {[%emt 0:03:28]} 47. d6 {[%emt 0:00:15]} Kf5 {[%emt 0:06:52]} 48. Kh3 {[%emt 0:00:37]} Bd8 {[%emt 0:00:34]} 49. Kg2 {[%emt 0:00:52]} Ke6 {[%emt 0:01:46]} 50. d7 {[%emt 0:00:48]} Kxd7 {[%emt 0:00:05]} 51. Kf3 {[%emt 0:00:08]} Kd6 {[%emt 0:00:14]} 52. Ke4 {[%emt 0:00:08]} Bf6 {[%emt 0:00:05]} 53. Kd3 {[%emt 0:00:13]} Kd5 {[%emt 0:00:05]} 54. f5 {[%emt 0:00:23]} Ke5 {[%emt 0:02:50]} 55. c4 {[%emt 0:00:36]} bxc4+ {[%emt 0:00:20]} 56. Kxc4 {[%emt 0:00:02]} Kxf5 {[%emt 0:00:13]} 57. Kd5 {[%emt 0:01:04]} Be5 {[%emt 0:00:10]} 58. b5 {[%emt 0:01:40]} 0-1

[Event "360 One Wealth GP-4 2024"]
[Site "Mumbai"]
[Date "2024.03.13"]
[Round "3.15"]
[White "Ahaan Kataruka"]
[Black "Kolumum Raja, Aravind"]
[Result "1-0"]
[ECO "B01"]
[WhiteElo "1427"]
[BlackElo "1896"]
[Annotator "NA RC"]
[PlyCount "55"]
[EventDate "2024.03.10"]
[EventCountry "IND"]
[SourceTitle "playchess.com"]
[Source "ChessBase"]
[SourceQuality "1"]
[TimeControl "5400+30"]

1. e4 d5 {[%emt 0:46:20]} 2. exd5 {[%emt 0:00:17]} Qxd5 {[%emt 0:00:07]} 3. Nc3 {[%emt 0:00:05]} Qd6 {[%emt 0:00:05]} 4. d4 {[%emt 0:00:10]} Nc6 {[%emt 0:02:39]} 5. Nf3 {[%emt 0:02:24]} Bg4 {[%emt 0:00:22]} 6. d5 {[%emt 0:07:24] B01: Skandinavische Verteidigung.} Bxf3 {[%emt 0:12:34]} ({Black should try} 6... Ne5) 7. Qxf3 {[%emt 0:06:26]} Qe5+ {[%emt 0:08:11] [#]} (7... Nd4 $16 {was necessary.} 8. Qd3 e5) 8. Be3 {[%emt 0:06:11]} (8. Qe3 $1 $16 Qxe3+ 9. Bxe3) 8... Nd4 {[%emt 0:10:32]} 9. Qd1 {[%emt 0:03:33]} c5 {[%emt 0:05:30]} (9... Nf5 $1 $14) 10. Nb5 {[%emt 0:16:46]} Nf5 {[%emt 0:11:03]} 11. Qc1 {[%emt 0:07:23]} a6 {[%emt 0:02:17]} 12. Nc3 {[%emt 0:00:56]} Nf6 {[%emt 0:01:10]} 13. Qd2 {[%emt 0:02:51] [#]} (13. Be2 $11) 13... Ng4 $1 {[%emt 0:03:44]} 14. O-O-O {[%emt 0:08:56]} Nfxe3 {[%emt 0:06:29]} (14... Nxh2 $2 {is the wrong capture.} 15. Be2 $18 (15. Bxc5 Nxf1 16. Rhxf1 Qc7 $18)) 15. Re1 $2 {[%emt 0:03:28]} (15. fxe3 $15 g6 (15... Qxe3 16. h3 $15) (15... Nxe3 16. Re1 $16) 16. Re1) 15... Nxf1 {[%emt 0:00:43]} 16. Rhxf1 {[%emt 0:02:19]} Qd4 {[%emt 0:03:20]} ({Don't take} 16... Qxh2 17. Rh1 Qxg2 18. Qf4 $19) 17. Qe2 {[%emt 0:04:31]} Rd8 {[%emt 0:03:46]} ({Don't take} 17... Nxh2 18. Rg1 $19) 18. Kb1 {[%emt 0:06:15]} Nf6 {[%emt 0:02:51]} ({Weaker is} 18... Nxh2 19. Rd1 Qf4 20. Rg1 $19) 19. Rd1 {[%emt 0:08:35]} Qf4 {[%emt 0:02:52]} 20. g3 $19 {[%emt 0:00:54]} Qd6 {[%emt 0:00:48]} 21. g4 g6 {[%emt 0:05:15]} 22. g5 Nh5 {[%emt 0:01:37]} 23. Ne4 {[%emt 0:02:20]} Qb6 {[%emt 0:06:12]} 24. d6 {[%emt 0:01:53]} Bg7 {[%emt 0:02:09]} 25. c3 {[%emt 0:01:38]} O-O {[%emt 0:03:15]} 26. dxe7 {[%emt 0:00:53]} Rxd1+ {[%emt 0:00:02]} 27. Rxd1 {[%emt 0:00:03]} Re8 {[%emt 0:06:23]} 28. Nd6 {[%emt 0:00:49]} 1-0

[Event "360 One Wealth GP-4 2024"]
[Site "Mumbai"]
[Date "2024.03.14"]
[Round "4.1"]
[White "Kulkarni, Vikramaditya"]
[Black "Shah Mihir"]
[Result "1/2-1/2"]
[ECO "E90"]
[WhiteElo "2192"]
[BlackElo "1764"]
[Annotator "RC"]
[PlyCount "161"]
[EventDate "2024.03.10"]
[EventCountry "IND"]
[SourceTitle "playchess.com"]
[Source "ChessBase"]
[SourceQuality "1"]
[TimeControl "5400+30"]

1. d4 {[%emt 0:00:07]} Nf6 {[%emt 0:02:42]} 2. Nf3 {[%emt 0:00:28]} g6 {[%emt 0:00:35]} 3. c4 {[%emt 0:02:28]} Bg7 {[%emt 0:00:17]} 4. Nc3 {[%emt 0:00:31]} O-O {[%emt 0:02:19]} 5. e4 {[%emt 0:00:17]} d6 {[%emt 0:01:25]} 6. h3 {[%emt 0:00:17]} e5 {[%emt 0:00:42]} 7. dxe5 {[%emt 0:04:02]} dxe5 {[%emt 0:00:27]} 8. Qxd8 {[%emt 0:00:00]} Rxd8 {[%emt 0:00:06]} 9. Nd5 {[%emt 0:00:34]} Rd7 {[%emt 0:07:08]} 10. Nxe5 {[%emt 0:01:03]} Nxd5 {[%emt 0:00:00]} 11. Nxd7 {[%emt 0:04:56]} Nb4 {[%emt 0:00:00]} 12. Nxb8 {[%emt 0:00:05]} Nc2+ {[%emt 0:00:00]} 13. Kd1 {[%emt 0:00:00]} Nxa1 {[%emt 0:00:00]} 14. Bf4 {[%emt 0:01:14]} Rxb8 {[%emt 0:19:08]} 15. Bxc7 {[%emt 0:00:26]} Ra8 {[%emt 0:00:00]} 16. Kc1 {[%emt 0:06:16]} Be6 {[%emt 0:00:16]} 17. Kb1 {[%emt 0:02:32]} Rc8 {[%emt 0:04:26]} 18. Bf4 {[%emt 0:07:33]} Bxc4 {[%emt 0:00:58]} 19. Bxc4 {[%emt 0:00:36]} Rxc4 {[%emt 0:00:15]} 20. Rc1 {[%emt 0:02:00]} Rxe4 {[%emt 0:14:43]} 21. Rc8+ {[%emt 0:00:12]} Bf8 {[%emt 0:00:00]} 22. Be3 {[%emt 0:11:45]} f5 {[%emt 0:02:06]} 23. Kxa1 {[%emt 0:12:00]} a6 {[%emt 0:26:31]} 24. Rb8 {[%emt 0:05:13]} Re7 {[%emt 0:00:00]} 25. b4 {[%emt 0:27:07]} Kf7 {[%emt 0:00:00]} 26. Bc5 {[%emt 0:01:02]} Re1+ {[%emt 0:00:00]} 27. Kb2 {[%emt 0:00:01]} Bxc5 {[%emt 0:00:00]} 28. bxc5 {[%emt 0:00:03]} Re2+ {[%emt 0:00:00]} 29. Kc3 {[%emt 0:05:00]} Rxa2 {[%emt 0:00:00]} 30. Kd4 {[%emt 0:01:21]} Ke6 {[%emt 0:00:16]} 31. Rxb7 {[%emt 0:01:06]} Rxf2 {[%emt 0:03:14]} 32. Rb6+ {[%emt 0:01:24]} Kd7 {[%emt 0:00:32]} 33. g4 {[%emt 0:00:06]} fxg4 {[%emt 0:02:18]} 34. hxg4 {[%emt 0:00:02]} Rg2 {[%emt 0:07:28]} 35. Kd5 {[%emt 0:00:44]} Rd2+ {[%emt 0:00:10]} 36. Ke5 {[%emt 0:00:22]} Rg2 {[%emt 0:01:20]} 37. Kd5 {[%emt 0:02:26]} Rd2+ {[%emt 0:01:04]} 38. Ke4 {[%emt 0:02:59]} Rg2 {[%emt 0:01:31]} 39. Rd6+ {[%emt 0:00:32]} Kc7 {[%emt 0:00:33]} 40. Rxa6 {[%emt 0:00:24]} Rxg4+ {[%emt 0:00:17]} 41. Kd5 {[%emt 0:00:01]} Rg5+ {[%emt 0:00:33]} 42. Kc4 {[%emt 0:00:01]} Rg1 {[%emt 0:00:33]} 43. Ra7+ {[%emt 0:00:45]} Kc6 {[%emt 0:00:30]} 44. Rxh7 {[%emt 0:01:01]} Rg4+ {[%emt 0:01:59]} 45. Kd3 {[%emt 0:00:01]} Kxc5 {[%emt 0:00:24]} 46. Ke3 {[%emt 0:00:17]} Kd6 {[%emt 0:01:02]} 47. Kf3 {[%emt 0:00:06]} Rg1 {[%emt 0:00:09]} 48. Kf2 {[%emt 0:00:09]} Rg5 {[%emt 0:00:32]} 49. Ra7 {[%emt 0:00:28]} Ke6 {[%emt 0:00:42]} 50. Ra6+ {[%emt 0:00:05]} Kf7 {[%emt 0:00:33]} 51. Ra7+ {[%emt 0:00:54]} Kf6 {[%emt 0:00:08]} 52. Rb7 {[%emt 0:01:13]} Rg4 {[%emt 0:00:52]} 53. Rb5 {[%emt 0:00:39]} Rc4 {[%emt 0:00:28]} 54. Kg3 {[%emt 0:00:10]} Ra4 {[%emt 0:00:28]} 55. Rb6+ {[%emt 0:00:12]} Kg5 {[%emt 0:00:15]} 56. Rb5+ {[%emt 0:00:05]} Kh6 {[%emt 0:00:13]} 57. Rb1 {[%emt 0:00:36]} Kh5 {[%emt 0:00:31]} 58. Rb5+ {[%emt 0:00:12]} g5 {[%emt 0:00:14]} 59. Rb3 {[%emt 0:00:04]} Rg4+ {[%emt 0:01:13]} 60. Kh3 {[%emt 0:00:08]} Rg1 {[%emt 0:00:28]} 61. Ra3 {[%emt 0:00:27]} Re1 {[%emt 0:01:02]} 62. Kg3 {[%emt 0:00:12]} Re6 {[%emt 0:01:22]} 63. Rb3 {[%emt 0:00:01]} Kg6 {[%emt 0:00:23]} 64. Ra3 {[%emt 0:00:02]} Rc6 {[%emt 0:00:20]} 65. Rb3 {[%emt 0:00:01]} Rc1 {[%emt 0:00:22]} 66. Rb6+ {[%emt 0:00:07]} Kh5 {[%emt 0:00:17]} 67. Rb3 {[%emt 0:00:01]} Rg1+ {[%emt 0:00:19]} 68. Kh2 {[%emt 0:00:06]} Rg4 {[%emt 0:00:15]} 69. Rh3+ {[%emt 0:00:19]} Rh4 {[%emt 0:00:29]} 70. Kg3 {[%emt 0:00:09]} Rxh3+ {[%emt 0:00:16]} 71. Kxh3 {[%emt 0:00:01]} g4+ {[%emt 0:00:02]} 72. Kg3 {[%emt 0:00:01]} Kg5 {[%emt 0:00:01]} 73. Kg2 {[%emt 0:00:09]} Kh4 {[%emt 0:00:16]} 74. Kh2 {[%emt 0:00:02]} g3+ {[%emt 0:00:12]} 75. Kg2 {[%emt 0:00:01]} Kg4 {[%emt 0:00:01]} 76. Kg1 {[%emt 0:00:06]} Kh4 {[%emt 0:00:15]} 77. Kg2 {[%emt 0:00:04]} Kg4 {[%emt 0:00:08]} 78. Kg1 {[%emt 0:00:02]} Kf4 {[%emt 0:00:02]} 79. Kg2 {[%emt 0:00:06]} Kg4 {[%emt 0:00:21]} 80. Kg1 {[%emt 0:00:04]} g2 {[%emt 0:00:02]} 81. Kxg2 {[%emt 0:00:03]} 1/2-1/2

[Event "360 One Wealth GP-4 2024"]
[Site "Mumbai"]
[Date "2024.03.14"]
[Round "4.2"]
[White "Kapadi Yash"]
[Black "Iyer Arvind"]
[Result "1/2-1/2"]
[ECO "D03"]
[WhiteElo "1779"]
[BlackElo "1897"]
[Annotator "NA RC"]
[PlyCount "56"]
[EventDate "2024.03.10"]
[EventCountry "IND"]
[SourceTitle "playchess.com"]
[Source "ChessBase"]
[SourceQuality "1"]
[TimeControl "5400+30"]

{[%evp 10,55,0,-5,-5,-5,32767,4,32767,32767,0,-17,-17,-27,32767,32767,34,52,35,39,37,34,66,50,69,68,80,45,108,32767,32767,32767,70,32767,32767,32767,32767,32767,32767,32767,32767,32767,56,32767,32767,32767,32767,0]} 1. d4 {[%emt 0:05:31]} Nf6 {[%emt 0:00:13]} 2. Nf3 {[%emt 0:00:06]} e6 {[%emt 0:00:16]} 3. Bg5 {[%emt 0:00:08]} Be7 {[%emt 0:01:26]} 4. Nbd2 {[%emt 0:00:31]} d5 {[%emt 0:00:24]} 5. e3 {[%emt 0:00:46]} b6 {[%emt 0:01:48]} 6. Bd3 {[%emt 0:02:30]} Bb7 {[%emt 0:00:44]} 7. Ne5 {[%emt 0:04:08]} h6 {[%emt 0:08:29] D03: 1 d4 d5 2 Nf3 Nf6 3 Bg5, including Torre Attack with early ...d5.} 8. Bxf6 {[%emt 0:08:06]} gxf6 {[%emt 0:08:26]} 9. Nef3 {[%emt 0:03:16]} Nd7 {[%emt 0:04:24]} 10. e4 {[%emt 0:07:04]} dxe4 {[%emt 0:00:00]} 11. Bxe4 {[%emt 0:00:44]} Bxe4 {[%emt 0:06:15]} 12. Nxe4 {[%emt 0:00:48]} Qc8 {[%emt 0:00:12]} 13. Qe2 {[%emt 0:06:45]} Qb7 {[%emt 0:01:36]} 14. O-O-O {[%emt 0:01:40]} O-O-O {[%emt 0:01:06]} 15. Kb1 {[%emt 0:08:52]} Rhe8 {[%emt 0:04:14]} (15... a5 $11) 16. Rhe1 {[%emt 0:04:10]} Bf8 {[%emt 0:05:02]} 17. Ng3 {[%emt 0:03:25]} Re7 {[%emt 0:15:30]} 18. Qc4 {[%emt 0:07:06]} Rde8 {[%emt 0:16:42]} (18... a5 $14) 19. a3 {[%emt 0:12:45]} c6 {[%emt 0:03:59]} 20. Ne4 {[%emt 0:02:42]} Qc7 {[%emt 0:00:32]} 21. Re3 {[%emt 0:01:55]} f5 {[%emt 0:01:12]} 22. Ned2 {[%emt 0:00:32]} Bg7 {[%emt 0:02:01]} 23. Qa6+ {[%emt 0:00:48]} Qb7 {[%emt 0:02:21]} 24. Qe2 {[%emt 0:00:52]} Qc7 {[%emt 0:09:00]} 25. Nc4 {[%emt 0:02:05]} Kb7 {[%emt 0:03:36]} 26. Ncd2 {[%emt 0:04:20]} Kc8 {[%emt 0:00:25]} 27. Nc4 {[%emt 0:00:04]} Kb7 {[%emt 0:00:08]} 28. Ncd2 $11 {[%emt 0:00:29]} (28. g3 $14) 28... Kc8 {[%emt 0:00:26]} 1/2-1/2

[Event "360 One Wealth GP-4 2024"]
[Site "Mumbai"]
[Date "2024.03.14"]
[Round "4.3"]
[White "Soni Deepak R"]
[Black "Arnav Mahesh Koli"]
[Result "0-1"]
[ECO "B07"]
[WhiteElo "1681"]
[BlackElo "1857"]
[Annotator "NA RC"]
[PlyCount "102"]
[EventDate "2024.03.10"]
[EventCountry "IND"]
[SourceTitle "playchess.com"]
[Source "ChessBase"]
[SourceQuality "1"]
[TimeControl "5400+30"]

1. d4 {[%emt 0:09:00]} Nf6 {[%emt 0:00:09]} 2. Bf4 {[%emt 0:00:34]} g6 {[%emt 0:00:24]} 3. Nc3 {[%emt 0:00:06]} Bg7 {[%emt 0:00:06]} 4. e4 {[%emt 0:00:04]} d6 {[%emt 0:00:04]} 5. Qd2 {[%emt 0:00:14]} Nbd7 {[%emt 0:02:48]} 6. O-O-O {[%emt 0:03:06] B07: Pirc Defence: Miscellaneous Systems.} c6 {[%emt 0:03:28]} 7. f3 {[%emt 0:10:52]} b5 {[%emt 0:05:16]} 8. Kb1 {[%emt 0:09:44]} O-O {[%emt 0:08:20]} (8... b4 $11 {might be stronger.} 9. Na4 Qa5) 9. Bh6 {[%emt 0:03:09]} Nb6 {[%emt 0:03:36]} 10. h4 {[%emt 0:07:43]} b4 {[%emt 0:09:35]} 11. Nce2 {[%emt 0:00:36]} Nc4 {[%emt 0:00:39] [#]} 12. Qg5 {[%emt 0:01:29]} (12. Qc1 $1 $16) 12... Rb8 {[%emt 0:06:53] [#]} (12... Qa5 $1 $11) 13. Ng3 {[%emt 0:09:43]} (13. Nc1 $142 $1 Be6 14. Bxc4 Bxc4 15. b3 Bxh6 16. Qxh6) 13... Na3+ {[%emt 0:20:30]} 14. Kc1 {[%emt 0:00:10]} Bxh6 {[%emt 0:00:11]} 15. Qxh6 {[%emt 0:01:31]} Qa5 {[%emt 0:00:40]} (15... Qc7 {was necessary.}) 16. h5 {[%emt 0:11:26]} ({Stronger than} 16. bxa3 bxa3 17. Qe3 Be6 $17) 16... Be6 {[%emt 0:01:06]} 17. hxg6 {[%emt 0:01:43]} fxg6 {[%emt 0:00:17]} 18. e5 {[%emt 0:01:29]} (18. bxa3 $2 {loses.} bxa3 $19) 18... dxe5 {[%emt 0:02:01]} 19. Bd3 {[%emt 0:08:44]} Rf7 {[%emt 0:14:27]} 20. Bxg6 {[%emt 0:04:09] [#]} Rg7 $2 {[%emt 0:00:38]} (20... Nc4 $1 $19 21. Bd3 (21. Bxf7+ $2 {is the wrong capture.} Kxf7 22. Rd2 Rg8 $19) 21... Qxa2 22. Qg5+ Kh8 23. Bxc4 Bxc4) 21. Bf5 {[%emt 0:10:40]} Bf7 {[%emt 0:02:57]} 22. Ne4 {[%emt 0:01:03]} Nxe4 {[%emt 0:04:10]} 23. Bxh7+ {[%emt 0:00:08]} Kf8 {[%emt 0:00:06]} 24. Bxe4 {[%emt 0:00:39]} Nc4 $1 {[%emt 0:00:25]} 25. Kb1 {[%emt 0:01:51]} Nxb2 {[%emt 0:00:55]} 26. Qh8+ {[%emt 0:01:19]} Bg8 {[%emt 0:01:07]} 27. Kxb2 $15 {[%emt 0:01:02]} Qxa2+ {[%emt 0:01:19]} 28. Kc1 {[%emt 0:00:02]} b3 {[%emt 0:00:02]} 29. Rh5 {[%emt 0:01:44]} Qa1+ {[%emt 0:00:31]} 30. Kd2 {[%emt 0:00:16]} Qxd4+ {[%emt 0:02:03]} 31. Bd3 {[%emt 0:00:24]} Qf4+ {[%emt 0:01:33]} 32. Ke1 {[%emt 0:00:28]} Qg3+ {[%emt 0:05:49]} 33. Kd2 {[%emt 0:00:08]} b2 {[%emt 0:01:00]} 34. Ne2 {[%emt 0:00:29]} Qxg2 {[%emt 0:00:37]} 35. Rf5+ {[%emt 0:00:40]} Ke8 {[%emt 0:01:41]} 36. Rg1 {[%emt 0:00:33]} b1=Q {[%emt 0:00:47]} 37. Rxb1 {[%emt 0:01:11]} Rxb1 {[%emt 0:00:23]} 38. Bc4 {[%emt 0:00:37]} Rh1 {[%emt 0:01:05]} 39. Rh5 {[%emt 0:00:19]} Rxh5 {[%emt 0:00:35]} 40. Qxh5+ {[%emt 0:00:09]} Kd8 {[%emt 0:00:02]} 41. Bxg8 {[%emt 0:00:17]} Rxg8 {[%emt 0:00:08]} 42. Qh7 {[%emt 0:00:53]} Qg5+ {[%emt 0:00:31]} 43. Kd1 {[%emt 0:00:12]} Qg6 {[%emt 0:00:19]} 44. Qh2 {[%emt 0:00:39]} Qd6+ {[%emt 0:00:04]} 45. Kc1 {[%emt 0:00:20]} a5 {[%emt 0:00:20]} 46. Qh7 {[%emt 0:00:11]} Qg6 {[%emt 0:00:39]} 47. Qh2 {[%emt 0:00:32]} Qg5+ {[%emt 0:00:09]} 48. Kb2 {[%emt 0:00:25]} Kc7 {[%emt 0:00:08]} 49. Qf2 {[%emt 0:00:10]} Rb8+ {[%emt 0:00:21]} 50. Kc3 {[%emt 0:00:45]} e4 {[%emt 0:01:08]} 51. fxe4 {[%emt 0:00:22]} Qf6+ {[%emt 0:00:14]} 0-1

[Event "360 One Wealth GP-4 2024"]
[Site "Mumbai"]
[Date "2024.03.14"]
[Round "4.4"]
[White "Boricha Yohan"]
[Black "Ishan Roy"]
[Result "1/2-1/2"]
[ECO "C07"]
[WhiteElo "1840"]
[BlackElo "1609"]
[Annotator "NA RC"]
[PlyCount "116"]
[EventDate "2024.03.10"]
[EventCountry "IND"]
[SourceTitle "playchess.com"]
[Source "ChessBase"]
[SourceQuality "1"]
[TimeControl "5400+30"]

1. e4 {[%emt 0:00:02]} e6 {[%emt 0:00:18]} 2. d4 {[%emt 0:00:14]} d5 {[%emt 0:00:05]} 3. Nd2 {[%emt 0:00:08]} c5 {[%emt 0:00:07]} 4. exd5 {[%emt 0:00:08]} Qxd5 {[%emt 0:00:06]} 5. Ngf3 {[%emt 0:00:08]} cxd4 {[%emt 0:00:05]} 6. Bc4 {[%emt 0:00:07]} Qd7 {[%emt 0:00:04]} 7. O-O {[%emt 0:00:44]} Nf6 {[%emt 0:00:04]} 8. Nb3 {[%emt 0:01:18]} Nc6 {[%emt 0:00:01]} 9. Nbxd4 {[%emt 0:00:39]} Nxd4 {[%emt 0:00:01]} 10. Qxd4 {[%emt 0:00:07]} Qxd4 {[%emt 0:00:11]} 11. Nxd4 {[%emt 0:00:02]} Bd7 {[%emt 0:01:25]} 12. Be2 {[%emt 0:00:17]} Bc5 {[%emt 0:00:43]} 13. Nb3 {[%emt 0:04:49]} Bb6 {[%emt 0:00:25]} 14. Bf4 {[%emt 0:14:20]} Rc8 {[%emt 0:00:32]} 15. c4 {[%emt 0:01:09] C07: Französische Verteidigung (Tarrasch-Variante).} Bc6 {[%emt 0:03:48]} 16. Bd6 {[%emt 0:08:00]} h5 {[%emt 0:14:31]} 17. c5 {[%emt 0:03:30]} Bc7 {[%emt 0:01:06]} 18. Bxc7 {[%emt 0:00:49]} Rxc7 {[%emt 0:00:01]} 19. Nd4 {[%emt 0:00:11]} Bd5 {[%emt 0:08:44]} 20. b4 {[%emt 0:02:40]} a6 {[%emt 0:01:24]} 21. Nc2 {[%emt 0:08:39]} Rh6 {[%emt 0:17:09]} 22. Ne3 {[%emt 0:01:09]} Rg6 {[%emt 0:08:51]} (22... Rh8 $11 {ist eher angebracht.}) 23. Nxd5 {[%emt 0:04:57]} Nxd5 {[%emt 0:00:23]} 24. a3 $1 {[%emt 0:00:28]} ({Viel schlechter ist} 24. Bxh5 Rg5 25. Bf3 Nxb4 $15) 24... h4 {[%emt 0:02:19]} 25. Bf3 {[%emt 0:01:44]} Nf4 {[%emt 0:00:47]} (25... a5 $11 {deserves consideration.}) 26. g3 {[%emt 0:06:19]} hxg3 {[%emt 0:05:43]} 27. fxg3 {[%emt 0:00:48]} Nh3+ {[%emt 0:01:44]} 28. Kg2 {[%emt 0:00:18]} Ng5 {[%emt 0:03:42]} 29. Be2 {[%emt 0:01:04]} Kf8 {[%emt 0:10:30]} 30. Rac1 {[%emt 0:12:57]} e5 {[%emt 0:02:32]} 31. a4 {[%emt 0:01:51]} Ne6 {[%emt 0:00:29]} 32. Bc4 {[%emt 0:03:53]} Ke7 {[%emt 0:02:04]} 33. Kh1 {[%emt 0:03:27]} Rh6 {[%emt 0:01:16]} 34. Bd5 {[%emt 0:01:21]} Rh8 {[%emt 0:02:56]} 35. c6 {[%emt 0:03:51]} bxc6 $1 {[%emt 0:00:37]} 36. Rxc6 {[%emt 0:01:27]} Rxc6 {[%emt 0:00:42]} 37. Bxc6 {[%emt 0:00:01]} Rc8 {[%emt 0:00:27]} 38. Bb7 {[%emt 0:01:07]} Rb8 {[%emt 0:00:20]} 39. Bxa6 {[%emt 0:00:12]} Rxb4 {[%emt 0:00:04]} 40. Ra1 $11 {[%emt 0:01:10]} Nc5 {[%emt 0:01:37]} 41. Bb5 {[%emt 0:00:33]} Kd6 {[%emt 0:00:08]} 42. Rd1+ {[%emt 0:01:46]} Rd4 {[%emt 0:01:18]} 43. Rxd4+ {[%emt 0:01:58]} exd4 {[%emt 0:00:01]} 44. Kg2 {[%emt 0:00:06]} Kc7 {[%emt 0:01:08]} 45. Kf3 {[%emt 0:00:32]} Kb6 {[%emt 0:00:05]} 46. h4 {[%emt 0:00:19]} Ka5 {[%emt 0:02:30]} 47. g4 {[%emt 0:01:28]} f6 {[%emt 0:01:01]} 48. Kf4 {[%emt 0:02:30]} Nxa4 {[%emt 0:02:09]} 49. Bxa4 {[%emt 0:00:34]} Kxa4 {[%emt 0:00:01]} 50. Ke4 {[%emt 0:00:32]} Kb5 {[%emt 0:00:00]} 51. Kxd4 {[%emt 0:00:56]} Kc6 {[%emt 0:00:01]} 52. Ke4 {[%emt 0:00:25]} Kd6 {[%emt 0:00:32]} 53. Kf5 {[%emt 0:00:05]} Ke7 {[%emt 0:00:04]} 54. Kg6 {[%emt 0:00:05]} Kf8 {[%emt 0:00:04]} 55. Kh7 {[%emt 0:00:20]} g5 {[%emt 0:04:41]} 56. hxg5 {[%emt 0:00:34]} fxg5 {[%emt 0:00:00]} 57. Kg6 {[%emt 0:00:10]} Kg8 {[%emt 0:00:05]} 58. Kxg5 {[%emt 0:00:05]} Kg7 {[%emt 0:00:04]} 1/2-1/2

[Event "360 One Wealth GP-4 2024"]
[Site "Mumbai"]
[Date "2024.03.14"]
[Round "4.5"]
[White "Vivek Ashok Jadhav"]
[Black "Guru Prakash"]
[Result "0-1"]
[ECO "B84"]
[WhiteElo "1559"]
[BlackElo "1794"]
[Annotator "NA RC"]
[PlyCount "68"]
[EventDate "2024.03.10"]
[EventCountry "IND"]
[SourceTitle "playchess.com"]
[Source "ChessBase"]
[SourceQuality "1"]
[TimeControl "5400+30"]

1. e4 {[%emt 0:00:30]} c5 {[%emt 0:00:32]} 2. Nf3 {[%emt 0:00:18]} e6 {[%emt 0:00:06]} 3. d4 {[%emt 0:00:28]} cxd4 {[%emt 0:00:06]} 4. Nxd4 {[%emt 0:00:18]} a6 {[%emt 0:00:06]} 5. Nc3 {[%emt 0:00:25]} Qc7 {[%emt 0:00:05]} 6. Be2 {[%emt 0:01:46]} Nf6 {[%emt 0:00:11]} 7. a3 {[%emt 0:00:44]} b5 {[%emt 0:00:07]} 8. Be3 {[%emt 0:02:09]} Bb7 {[%emt 0:02:18]} 9. f3 {[%emt 0:01:37]} Be7 {[%emt 0:01:49]} 10. O-O {[%emt 0:02:01]} O-O {[%emt 0:01:12]} 11. Kh1 {[%emt 0:00:46]} d6 {[%emt 0:05:19]} 12. Qe1 {[%emt 0:01:33]} Nbd7 {[%emt 0:01:34]} 13. Qf2 {[%emt 0:02:06]} Rfe8 {[%emt 0:10:37]} 14. Rae1 {[%emt 0:08:51]} d5 {[%emt 0:02:52]} 15. exd5 {[%emt 0:07:53]} Nxd5 {[%emt 0:00:07]} 16. Nxd5 {[%emt 0:01:22]} Bxd5 {[%emt 0:00:08]} 17. Bd3 {[%emt 0:04:23]} Rad8 {[%emt 0:06:11]} 18. c3 {[%emt 0:14:41]} Nc5 {[%emt 0:07:03]} 19. Be2 {[%emt 0:06:34]} g6 {[%emt 0:03:52]} 20. Nc2 {[%emt 0:02:32]} Bc4 {[%emt 0:08:27]} 21. Bd4 {[%emt 0:04:24]} Bf8 {[%emt 0:16:41]} 22. Bxc4 {[%emt 0:07:37]} bxc4 {[%emt 0:00:28]} 23. Ne3 {[%emt 0:03:51]} Nd3 {[%emt 0:06:59]} 24. Qh4 {[%emt 0:00:25]} e5 {[%emt 0:00:49]} 25. Ng4 {[%emt 0:06:39]} Bg7 {[%emt 0:01:29]} 26. Be3 {[%emt 0:07:30]} f5 {[%emt 0:01:07]} 27. Nf6+ {[%emt 0:02:32]} Bxf6 {[%emt 0:00:31]} 28. Qxf6 {[%emt 0:00:10]} Nxe1 {[%emt 0:00:40]} 29. Rxe1 {[%emt 0:00:14]} Rd6 {[%emt 0:01:48]} 30. Qh4 {[%emt 0:01:34]} Rb8 {[%emt 0:03:52]} 31. Bd4 {[%emt 0:02:18]} Re6 {[%emt 0:02:27]} 32. Qf2 {[%emt 0:02:19]} Qd6 {[%emt 0:01:14]} 33. Qe2 {[%emt 0:01:26]} exd4 {[%emt 0:01:10]} 34. Qxc4 {[%emt 0:02:28]} Rbe8 {[%emt 0:02:18]} 0-1